Cogmind - Beta 10.1 @@@ ROGUE MODE // 2020.10.06 @ 22:58:16 Player: derk Result: Destroyed 0B10! Performance ------------- Evolutions (9) 4500 Regions Visited (30) 6000 Robots Destroyed (437) 2185 Value Destroyed (20189) 20189 Prototype IDs (77) 1540 Alien Tech Used (8) 1600 Bonus (20174) 20174 TOTAL SCORE: 56188 Bonus ------- High Alert Combat Kills 742 Follower Combat Kills 2214 Network Hubs Disabled 200 Met Data Miner 300 Met Zhirov 300 Met Warlord at Base 500 MAIN.C Attacked Warlord 500 A7 Reached Mainframe 300 Met R17 at Cetus 500 Used Core Reset Matrix 3000 Met Warlord at Research 2000 Invited to Help at Command 2000 Met Sigix 2000 Escaped with Sigix 5000 Win 3000 Friendly Fire -2382 Cogmind --------- Core Integrity 784/1600 Matter 290/300 Energy 1302/1320 System Corruption 18% Temperature Cool (12) Movement Treading (156) Location Tau Ceti IV Orbit Parts ------- > --- POWER (3) -------- Light Particle Reactor Light Quantum Reactor Improved Quantum Reactor > --- PROPULSION (6) --- Medium Treads Medium Treads Advanced Medium Treads Advanced Heavy Siege Treads Cooled Antigrav System > --- UTILITY (15) ----- Experimental Heat Sink Improved Cooling System Advanced Coolant Injector Large Storage Unit Large Storage Unit High-capacity Storage Unit Advanced Energy Well Experimental Targeting Computer Advanced Armor Integrity Analyzer Centrium Light Armor Plating Advanced Thermal Shield Improved Remote Shield Advanced Hacking Suite Advanced System Shield 01-MTF's Autohacker > --- WEAPON (2) ------- Heavy Proton Cannon HERF Cannon > --- INVENTORY (24) --- Light Particle Reactor Light Quantum Reactor Improved Antigrav System Improved Antigrav System Cooled Linear Gravjet Combat Linear Gravjet Combat Linear Gravjet Improved Matter Compressor (300) Improved Remote Shield Transdimensional Reconstructor Heavy Neutron Cannon Heavy Neutron Cannon Nova Cannon Nova Cannon Enhanced Nova Cannon Helical Railgun Helical Railgun Particle Cleaver Plasma Lance Sigix Containment Pod Peak State ------------ > --- POWER ------------ Particle Reactor Light Quantum Reactor Improved Quantum Reactor > --- PROPULSION ------- Advanced Heavy Siege Treads Advanced Heavy Siege Treads Advanced Heavy Siege Treads > --- UTILITY ---------- Experimental Heat Sink Improved Cooling System Large Storage Unit Large Storage Unit High-capacity Storage Unit Advanced Energy Well Experimental Targeting Computer Advanced Armor Integrity Analyzer Layered Heavy Armor Plating Centrium Light Armor Plating Phase Armor Point Defense Array Advanced System Shield > --- WEAPON ----------- Railgun Helical Railgun > --- INVENTORY -------- Light Quantum Reactor Advanced Medium Treads Improved Antigrav System Cooled Antigrav System Cooled Linear Gravjet Combat Linear Gravjet Combat Linear Gravjet Improved Matter Compressor Centrium Light Armor Plating 01-MTF's Autohacker Transdimensional Reconstructor High-powered Transdimensional Reconstructor Heavy Proton Cannon HERF Cannon Heavy Neutron Cannon Heavy Neutron Cannon Nova Cannon Nova Cannon Helical Railgun Particle Cleaver Plasma Lance Sigix Containment Pod [Rating: 214] Favorites ----------- Power Enhanced Fission Core Engine Reinforced Deuterium Engine Power Core Enhanced Fission Core Reactor Light Antimatter Reactor Propulsion Armored Treads Treads Armored Treads Leg Flexi-carbon Leg Wheel Armored Huge Wheel Hover Unit Combat Gravmag System Flight Unit Xenon Bombardment Thruster Utility High-capacity Storage Unit Device Advanced Heat Sink Storage High-capacity Storage Unit Processor Advanced Targeting Computer Hackware Advanced System Shield Protection Improved Light Armor Plating Artifact Phase Armor Weapon Gauss Rifle Energy Gun Quantum Rifle Energy Cannon Proton Cannon Ballistic Gun Gauss Rifle Ballistic Cannon Flak Cannon Launcher Improved Grenade Launcher Special Weapon Stasis Projector Impact Weapon Hammer Slashing Weapon Power Sword Piercing Weapon Makeshift Spear Build | -11 -10 -9 -9 -9 -8 -8 -8 -7 -7 -7 -7 -6 -6 -6 -6 -6 -6 -5 -5 -5 -5 -4 -4 -4 -4 -3 -3 -3 -2 -1 ------- Run | Scr Mat Mat Min Exi Min Mat Sto Fac Low Low Dat Pro Fac Ext Cet Arc Hub Fac Upp Upp Zhi Pro Fac Upp War Pro Res Qua Res Acc Slots Evolved 18 | . . 2 . . . 2 . 2 . . . . 2 . . . . 2 . . . . 2 . . . 2 . 2 2 Power 1 | . . . . . . . . . . . . . . . . . . 1 . . . . . . . . . . . . Propulsion 4 | . . . . . . 1 . . . . . . 1 . . . . . . . . . . . . . 2 . . . Utility 13 | . . 2 . . . 1 . 2 . . . . 1 . . . . 1 . . . . 2 . . . . . 2 2 Weapon . | . . . . . . . . . . . . . . . . . . . . . . . . . . . . . . . Parts Attached 744 | 8 14 16 4 3 2 20 26 28 12 15 1 29 37 19 17 2 9 92 16 7 7 21 35 40 22 14 51 45 84 48 Power 59 | 1 3 1 . . 1 1 4 1 . 1 . . 2 1 2 . 1 6 2 . . 2 3 7 1 . 4 1 9 5 Engine 14 | 1 3 1 . . . . 4 1 . 1 . . 1 1 . . 1 . . . . . . . . . . . . . Core 14 | . . . . . 1 1 . . . . . . . . . . . 4 2 . . 1 1 2 . . . . 2 . Reactor 31 | . . . . . . . . . . . . . 1 . 2 . . 2 . . . 1 2 5 1 . 4 1 7 5 Propulsion 150 | 2 2 6 . . . 3 2 9 4 2 . 8 8 8 3 . 2 24 . 2 3 . 5 10 4 . 16 4 16 7 Treads 75 | 2 . 5 . . . 3 2 7 3 2 . 5 4 5 3 . 2 7 . . . . 2 7 . . 6 . 6 4 Leg 11 | . 1 1 . . . . . . . . . 3 3 3 . . . . . . . . . . . . . . . . Wheel 9 | . 1 . . . . . . 2 . . . . 1 . . . . 2 . . . . . . . . . . 3 . Hover 51 | . . . . . . . . . 1 . . . . . . . . 15 . 2 3 . 3 3 4 . 8 4 5 3 Flight 4 | . . . . . . . . . . . . . . . . . . . . . . . . . . . 2 . 2 . Utility 336 | 2 4 6 2 3 1 10 11 13 3 5 1 11 16 8 9 2 3 39 6 4 4 7 16 16 10 10 19 28 41 26 Device 162 | 1 1 1 . . . 4 3 3 2 1 . 6 8 3 3 . . 18 1 2 . 5 8 10 7 6 14 21 19 15 Storage 35 | 1 3 1 . 1 . 2 3 3 . . . 1 2 1 . . . 5 1 . 1 . . 2 . . 1 3 3 1 Processor 27 | . . . . . . . 1 . . . 1 . 2 1 2 1 . 1 . . . 1 2 . 2 2 2 . 8 1 Hackware 12 | . . . . . . 1 1 . . . . . 1 . . . . 4 . . . . 2 . 1 . . . 1 1 Protection 93 | . . 4 2 2 1 3 3 7 1 4 . 4 3 3 4 1 3 11 4 2 3 1 4 4 . 2 2 . 7 8 Artifact 7 | . . . . . . . . . . . . . . . . . . . . . . . . . . . . 4 3 . Weapon 199 | 3 5 3 2 . . 6 9 5 5 7 . 10 11 2 3 . 3 23 8 1 . 12 11 7 7 4 12 12 18 10 Energy Gun 38 | 1 2 . . . . 3 1 . . . . . 1 . 2 . 1 6 . . . . 1 . 5 3 5 7 . . Energy Cannon 50 | . . . . . . 1 . . 2 2 . 1 4 1 1 . 1 7 2 . . 2 1 3 1 . 3 3 7 8 Ballistic Gun 64 | 2 3 3 . . . 1 5 4 2 . . 4 4 1 . . . 5 3 . . 5 5 3 . 1 3 . 8 2 Ballistic Cannon 6 | . . . 1 . . 1 1 . . 1 . . 1 . . . . . . . . . 1 . . . . . . . Launcher 22 | . . . . . . . . . 1 3 . 3 . . . . 1 2 2 . . 5 2 . 1 . . 2 . . Special Weapon 1 | . . . . . . . . . . . . . . . . . . . . . . . . . . . . . 1 . Impact Weapon 3 | . . . 1 . . . 1 1 . . . . . . . . . . . . . . . . . . . . . . Slashing Weapon 12 | . . . . . . . 1 . . 1 . 1 . . . . . 3 1 1 . . 1 1 . . 1 . 1 . Piercing Weapon 3 | . . . . . . . . . . . . 1 1 . . . . . . . . . . . . . . . 1 . Special Melee Weapon . | . . . . . . . . . . . . . . . . . . . . . . . . . . . . . . . Unidentified Prototypes 56 | . . . . . . 2 5 1 1 . . 2 1 . 3 . 1 3 . 1 4 . 3 2 9 . 5 2 10 1 Parts Lost 161 | . 8 4 2 . 3 3 4 . 1 3 . 10 12 3 3 3 11 20 . . . 3 13 16 . 3 12 11 6 7 Power 21 | . 1 . . . 1 . 1 . . . . . 1 1 . . 2 2 . . . . 2 5 . . 1 2 1 1 Propulsion 45 | . 2 2 . . . 2 . . . 1 . 5 3 2 . . 3 9 . . . . 2 2 . . 6 4 . 2 Utility 56 | . 1 . 2 . 2 1 3 . 1 2 . 3 5 . 1 2 3 6 . . . 1 4 4 . 2 2 3 4 4 Weapon 39 | . 4 2 . . . . . . . . . 2 3 . 2 1 3 3 . . . 2 5 5 . 1 3 2 1 . Highest Loss Streak 11 | . 4 2 1 . 2 1 2 . 1 2 . 4 3 3 3 2 11 5 . . . 2 4 11 . 2 5 6 2 1 Average Slot Usage (%) 93 | . 96 99 100 90 86 88 93 95 99 99 100 99 94 92 86 85 82 94 99 100 98 99 98 88 89 92 91 84 75 83 Engine 3 | . 13 11 11 11 8 . 7 7 7 7 7 7 2 5 . . . . . . . . . . . . . . . . Core 2 | . . . . . 2 9 1 . . . . . . . . . . 8 10 11 11 5 4 6 . . . . 1 . Reactor 3 | . . . . . . . . . . . . . 3 . 5 6 5 2 . . . 4 5 8 14 10 9 8 7 10 Treads 14 | . 24 13 22 22 22 26 26 21 22 22 23 20 15 13 14 13 12 6 . . . . 1 11 13 . 4 . 8 12 Leg 1 | . 1 1 . . . . . . . . . 2 2 12 . . . . . . . . . . . . . . . . Hover 5 | . . . . . . . . . . . . . . . . . . 11 23 23 23 23 19 3 1 20 16 20 3 . Device 9 | . 6 . . . . 8 5 8 9 12 11 11 14 6 6 6 5 8 7 11 11 10 9 11 17 16 14 23 11 11 Storage 18 | . 21 22 22 13 11 17 21 25 26 23 23 23 20 23 20 20 20 16 17 17 17 17 15 15 15 15 13 9 11 12 Processor 5 | . . . . . . . 2 . . . 2 6 3 8 13 13 13 6 5 5 5 5 16 12 10 11 12 9 8 7 Hackware 2 | . . . . . . . 1 . . . . . 5 . . . . 8 8 5 5 5 6 1 . 5 4 3 2 5 Protection 10 | . . 21 22 21 20 9 9 14 17 17 15 11 7 6 11 13 13 8 11 11 9 10 6 8 6 5 2 . 4 6 Energy Gun 1 | . 11 . . . . 5 . . . . . . . . 4 6 5 . . . . . . . 3 7 3 3 . . Energy Cannon 2 | . . . . . . 3 1 . 4 4 15 4 2 6 7 5 4 2 2 . . 4 . 1 . . 1 2 3 3 Ballistic Gun 5 | . 13 22 8 . . 1 13 10 9 1 . 8 6 2 . . . 4 4 5 5 4 4 6 6 1 1 1 4 3 Ballistic Cannon 1 | . . . 11 11 11 6 1 . . . . . 1 . . . . . . . . . 3 . . . . . . . Naked Turns . | . . . . . . . . . . . . . . . . . . . . . . . . . . . . . . . Heaviest Build 211 | 11 56 67 73 105 105 115 120 111 117 123 123 122 126 127 132 129 129 156 142 126 120 134 141 158 164 157 159 117 207 211 Greatest Support 240 | 40 40 40 40 40 40 63 63 71 71 71 66 69 90 116 160 160 160 126 82 91 92 76 84 126 126 90 182 116 240 240 Greatest Overweight (x) 6 | 1 5 5 1 2 2 1 1 4 1 2 1 4 4 4 1 . 1 4 1 1 1 1 5 2 1 1 2 1 6 1 Average Overweight (x) 1 | . . 1 1 1 2 1 1 1 1 1 1 1 2 1 . . . 1 1 1 1 1 1 1 1 1 . . . . Largest Inventory Capacity 44 | 6 18 18 18 38 24 30 44 26 26 26 26 26 26 30 26 26 26 28 32 24 24 24 24 24 24 24 24 24 24 24 Average Capacity 24 | 5 12 18 18 22 24 27 27 24 26 26 26 26 26 26 26 26 26 26 25 24 24 24 24 24 24 24 23 17 21 24 Most Carried 30 | 6 13 18 18 21 23 30 30 26 26 26 26 26 26 26 26 26 26 28 26 24 24 24 24 24 24 24 24 24 24 24 Average Carried 23 | 4 7 14 17 19 22 26 27 24 25 25 26 25 25 25 25 25 24 24 24 23 23 23 21 21 23 23 22 16 19 23 Final Capacity 30 | 6 18 18 18 24 24 30 24 26 26 26 26 26 26 26 26 26 26 26 24 24 24 24 24 24 24 24 24 10 24 24 Final Carried 30 | 6 13 18 17 21 22 30 24 26 26 26 26 26 26 26 26 24 13 26 24 24 24 22 21 24 24 24 24 10 24 21 Class Distribution -------------------- 43% | Hauler-Mutant 31% | Scavenger-Mutant 8% | Mutant 6% | Hacker-Mutant 6% | Generator-Mutant Dominant Class ---------------- Mutant | -10/Materials Scavenger-Mutant | -9/Materials Mutant | -9/Mines Hauler-Mutant | -9/Exiles Hauler-Mutant | -8/Mines Hauler-Mutant | -8/Materials Hauler-Mutant | -8/Storage Hauler-Mutant | -7/Factory Hauler-Mutant | -7/Lower Caves Hauler-Mutant | -7/Lower Caves Hauler-Mutant | -7/Data Miner Hauler-Mutant | -6/Proximity Caves Hauler-Mutant | -6/Factory Hauler-Mutant | -6/Extension Scavenger-Mutant | -6/Cetus Scavenger-Mutant | -6/Archives Scavenger-Mutant | -6/Hub_04(d) Scavenger-Mutant | -5/Factory Hacker-Mutant | -5/Upper Caves Machinist-Mutant | -5/Upper Caves Hauler-Mutant | -5/Zhirov Hauler-Mutant | -4/Proximity Caves Hauler-Mutant | -4/Factory Scavenger-Mutant | -4/Upper Caves Scavenger-Mutant | -4/Warlord Generator-Mutant | -3/Proximity Caves Generator-Mutant | -3/Research Scavenger-Mutant | -3/Quarantine Scavenger-Mutant | -2/Research Scavenger-Mutant | -1/Access Resources | -11 -10 -9 -9 -9 -8 -8 -8 -7 -7 -7 -7 -6 -6 -6 -6 -6 -6 -5 -5 -5 -5 -4 -4 -4 -4 -3 -3 -3 -2 -1 ----------- Run | Scr Mat Mat Min Exi Min Mat Sto Fac Low Low Dat Pro Fac Ext Cet Arc Hub Fac Upp Upp Zhi Pro Fac Upp War Pro Res Qua Res Acc Matter Collected 14964 | 283 290 146 351 . 127 685 804 669 220 225 . 618 1083 209 180 . 30 2022 289 127 180 485 711 1109 41 531 651 688 1203 1007 Remotely 125 | 110 15 . . . . . . . . . . . . . . . . . . . . . . . . . . . . . Salvage Created 22834 | 69 886 155 389 . 217 790 1213 860 326 843 . 1284 1324 1221 217 202 635 2286 658 28 238 1482 1223 1061 . 260 1114 1031 1001 1821 Parts 1016 | 1 62 10 31 . 10 44 63 44 14 27 . 48 52 26 7 5 26 109 23 1 3 45 74 41 . 6 66 27 34 117 Haulers Intercepted 15 | . 1 . . . . 4 5 1 . . . . . 1 . . 1 1 . . . . . . . . 1 . . . Recyclers Shooed 15 | . 1 . 2 . 1 1 1 1 . . . . . . . . . 3 . . . . 1 . . . 4 . . . Parts Field Recycled . | . . . . . . . . . . . . . . . . . . . . . . . . . . . . . . . Retrieved Matter . | . . . . . . . . . . . . . . . . . . . . . . . . . . . . . . . Parts Self-Destructed 179 | . . . . . . . . . 3 9 . 23 . . . . . . 14 3 1 14 . 27 77 8 . . . . Prevented 104 | . . . . . . . . . 4 11 . 26 . . . . . . 5 . . 29 . 16 13 . . . . . Kills | -11 -10 -9 -9 -9 -8 -8 -8 -7 -7 -7 -7 -6 -6 -6 -6 -6 -6 -5 -5 -5 -5 -4 -4 -4 -4 -3 -3 -3 -2 -1 ------- Run | Scr Mat Mat Min Exi Min Mat Sto Fac Low Low Dat Pro Fac Ext Cet Arc Hub Fac Upp Upp Zhi Pro Fac Upp War Pro Res Qua Res Acc Combat Hostiles Destroyed 357 | . 20 3 11 . 6 16 15 13 6 17 . 21 23 11 3 2 7 43 10 . . 22 17 16 . 6 16 15 13 25 Melee 3 | . 2 . . . . . . . . . . . . . . . . 1 . . . . . . . . . . . . Guns 141 | . 18 3 3 . . 4 11 13 1 . . 10 14 . . . 1 10 2 . . 3 5 6 . 6 8 4 5 14 Cannons 113 | . . . 8 . 6 12 4 . 1 5 . 4 5 9 2 . 3 18 2 . . 2 12 4 . . 6 2 1 7 AOE 53 | . . . . . . . . . 3 10 . 6 1 . . 1 1 11 4 . . 9 . 3 . . . 2 . 2 Classes Destroyed 18 | 1 6 1 2 . . 2 . 1 1 . . 1 . . . . . . . . . . . . . . . 1 2 . Worker 20 | . 2 . 3 . . 2 1 1 . . . . . . . . . 1 . . . . 2 . . . 4 2 . 2 Builder 3 | . . . . . . 1 . . . . . . . . . . . . . . . . 1 . . . . . . 1 Hauler 15 | . 1 . . . . 4 5 1 . . . . . 1 . . 1 1 . . . . . . . . 1 . . . Recycler 14 | 1 . . 1 . 2 1 2 1 . . . . 1 1 . . . 1 . . . . 2 . . . . . . 1 Minesweeper 3 | . . . . . . . . . . . . 1 . . . . . . . 1 . . . 1 . . . . . . Operator 7 | . 3 1 . . . . . . . . . . . . . . 1 . . . . . . . . . 1 1 . . Watcher 14 | . 3 . . . . . 1 . . . . . . 1 . . 1 2 . . . . 2 . . . 2 . . 2 Swarmer 80 | . 6 . 4 . 3 4 . . 1 3 . 3 4 . . . . 16 4 . . 5 . 5 . 3 6 . 4 9 Grunt 144 | . 14 1 5 . 3 10 7 8 2 13 . 12 11 8 1 2 2 8 4 . . 8 3 6 . . 3 10 . 3 Brawler 12 | . . . 1 . . . . . . 2 . . 1 . . . . 1 . . . 4 1 2 . . . . . . Duelist 12 | . . . 1 . . 1 2 1 1 . . . . . . . . 1 . . . 4 . . . . . 1 . . Protector 1 | . . . . . . . . . . . . . . . . . . . . . . . . . . . . 1 . . Sentry 41 | . . 2 . . . . 5 2 1 . . 3 2 3 . . 4 5 . . . 1 5 1 . 1 1 . 3 2 Hunter 19 | . . . . . . 1 1 1 . . . 1 3 . . . . 3 2 . . . . 2 . 2 . . 3 . Programmer 43 | . . . . . . . . 1 . . . 2 2 . . . 1 9 . . . 1 9 . . . 6 2 . 10 Cetus Guard 2 | . . . . . . . . . . . . . . . 2 . . . . . . . . . . . . . . . Lightning 1 | . . . . . . . . . . . . . . . . . . . . . . . . . . . . 1 . . Striker 2 | . . . . . . . . . . . . . . . . . . . . . . . . . . . . . 2 . Executioner 1 | . . . . . . . . . . . . . . . . . . . . . . . . . . . . . 1 . Thug 1 | . . . . . . . . . . . . . . . . . . . . . . . . . . . . . . 1 Mutant 1 | . . . . . . . . . 1 . . . . . . . . . . . . . . . . . . . . . Best Kill Streak 19 | 1 4 1 4 . 4 4 15 3 5 4 . 6 8 3 3 2 3 7 4 1 . 10 19 8 . 3 5 11 4 5 Combat Bots Only 13 | . 4 1 4 . 3 4 9 3 5 4 . 6 8 3 3 2 2 7 4 . . 10 10 8 . 3 5 13 4 5 Max Kills in Single Turn 4 | 1 1 1 1 . 1 2 2 1 2 3 . 2 1 1 1 1 1 4 2 1 . 3 2 2 . 1 2 1 2 3 Gunslinging 1 | . . . . . . . . . . . . . . . . . . . . . . . . 1 . . 1 . 1 . Exploded 4 | . . . . . . . . . 2 3 . 2 1 . . 1 1 4 2 . . 3 . 1 . . . 1 . 2 Melee 1 | . 1 . . . . . . . . . . . . . . . . 1 . . . . . . . . . . . . Uniques/NPCs Destroyed 1 | . . . . . . . 1 . . . . . . . . . . . . . . . . . . . . . . . 01-MTF (-8/Storage) Combat | -11 -10 -9 -9 -9 -8 -8 -8 -7 -7 -7 -7 -6 -6 -6 -6 -6 -6 -5 -5 -5 -5 -4 -4 -4 -4 -3 -3 -3 -2 -1 -------- Run | Scr Mat Mat Min Exi Min Mat Sto Fac Low Low Dat Pro Fac Ext Cet Arc Hub Fac Upp Upp Zhi Pro Fac Upp War Pro Res Qua Res Acc Damage Taken 41995 | . 1198 310 582 . 346 936 1103 1022 196 684 . 1777 3261 832 554 1030 4289 4660 800 . . 947 2765 2844 94 844 2571 1760 2306 4284 Core 3894 | . 192 13 48 . 18 124 14 47 10 30 . 155 381 12 41 . 296 388 89 . . 124 307 77 27 . 145 252 398 706 Absorbed by Shields 2918 | . . . . . . . . 97 71 . . . 323 515 57 . . . . . . . . . 37 119 912 . 517 270 Reduced by Siege Mode 433 | . . . . . . . . . . . . . . . . . . . . . . . . 112 . . 5 . 98 218 Redirected to Core 866 | . . . . . . . . . . . . . . . . . . . . . . . . . . . . . 283 583 Core Remaining (%) 57 | 100 23 . . . 80 . 74 . . . . 65 . . . . 14 . . . . 39 . . . 58 . 56 72 49 Volleys Fired 1400 | 1 90 22 28 . 24 88 48 54 13 35 . 70 89 70 16 15 33 158 30 9 . 48 76 55 6 42 98 58 56 68 Largest 2 | 2 2 2 2 . 1 2 2 2 2 2 . 2 2 2 2 1 2 2 2 1 . 2 2 2 1 2 2 2 2 2 Hottest 240 | 60 85 40 64 . 44 148 72 56 91 153 . 126 165 103 165 75 140 225 126 28 . 144 240 125 105 129 199 182 169 233 Shots Fired 2014 | 2 154 44 48 . 24 124 96 90 17 38 . 87 159 81 27 15 36 198 42 9 . 69 124 81 6 48 116 69 73 137 Gun 1141 | 2 154 44 20 . . 37 74 90 4 . . 48 117 11 3 . 5 91 12 9 . 24 56 54 . 48 83 28 41 86 Cannon 803 | . . . 28 . 24 87 22 . 6 25 . 31 42 70 24 15 30 95 22 . . 31 66 27 6 . 33 36 32 51 Launcher 70 | . . . . . . . . . 7 13 . 8 . . . . 1 12 8 . . 14 2 . . . . 5 . . Special . | . . . . . . . . . . . . . . . . . . . . . . . . . . . . . . . Kinetic 1117 | 1 92 44 48 . 24 89 96 90 4 . . 48 124 11 . . . 80 12 9 . 24 83 55 . 22 35 2 38 86 Thermal 437 | 1 62 . . . . 35 . . . 3 . 12 23 . 11 . 5 80 22 . . 31 39 7 6 10 54 1 3 32 Explosive 21 | . . . . . . . . . . 5 . 2 . . . . 1 4 4 . . 3 2 . . . . . . . Electromagnetic 402 | . . . . . . . . . 13 30 . 25 12 70 16 15 30 34 4 . . 11 . 19 . . 27 45 32 19 Entropic 37 | . . . . . . . . . . . . . . . . . . . . . . . . . . 16 . 21 . . Robot Hit Streak 55 | 2 14 14 10 . 7 19 24 9 5 12 . 19 55 25 11 6 10 21 13 7 . 13 14 17 . 8 20 14 13 21 Robot Miss Streak 8 | . 4 1 7 . 8 8 2 7 4 5 . 5 4 2 1 2 2 6 2 4 . 1 3 4 . 4 2 1 3 2 Penetration Max 1 | . . . . . . . 1 . . . . . 1 1 . . . 1 . . . 1 1 1 . . 1 1 . 1 Secondary Targets 14 | . . . . . . . 5 1 . . . . 1 . . . . 2 . . . . . 2 . . 2 . 1 . Max Gunslinging Chain 1 | . . . . . . . 1 1 . . . . 1 . . . . 1 . . . . . 1 . . 1 . 1 . Shots Hit Robots 1567 | 2 105 36 41 . 25 118 74 82 13 22 . 73 122 72 24 12 29 148 33 7 6 45 85 62 . 26 98 46 56 105 Core Hits 949 | 2 53 12 32 . 27 76 57 83 13 35 . 57 45 27 8 6 15 101 18 2 3 38 48 38 . 12 42 26 22 51 Critical Hits 57 | . 1 1 . . . 2 . . . 1 . 2 14 3 . 1 . 7 1 . . . 12 1 . . 2 6 3 . Critical Kills 24 | . . . . . . . . . . 1 . . 8 1 . . . 3 1 . . . 7 . . . 1 2 . . Critical Parts Destroyed 32 | . 1 1 . . . 2 . . . . . 2 5 2 . 1 . 4 . . . . 5 1 . . 1 4 3 . Melee Attacks 76 | . . . 16 . 3 . 6 3 . 1 . 6 2 . . . . 13 7 8 6 . 4 1 . . . . . . Impact 21 | . . . 16 . 3 . 2 . . . . . . . . . . . . . . . . . . . . . . . Slashing 53 | . . . . . . . 4 3 . 1 . 6 . . . . . 13 7 8 6 . 4 1 . . . . . . Piercing 2 | . . . . . . . . . . . . . 2 . . . . . . . . . . . . . . . . . Sneak Attacks 8 | . . . 2 . 2 . 4 . . . . . . . . . . . . . . . . . . . . . . . Combat Hostiles . | . . . . . . . . . . . . . . . . . . . . . . . . . . . . . . . Follow-up Attacks . | . . . . . . . . . . . . . . . . . . . . . . . . . . . . . . . Damage Inflicted 51513 | 26 1224 268 745 . 493 1654 2118 1572 468 1687 . 2864 2589 2447 783 620 1321 5871 1913 175 777 2979 3312 2354 . 875 3230 3062 1790 4296 Guns 19873 | 26 1199 268 140 . . 407 1296 1553 67 . . 914 1372 275 77 . 82 1820 175 175 . 565 1231 1004 . 875 2088 817 782 2665 Cannons 19722 | . . . 456 . 397 1199 389 . 62 389 . 593 1152 1942 706 451 788 2884 483 . . 549 2040 782 . . 1142 1040 935 1343 Explosions 8782 | . . . . . . . . . 339 1205 . 855 65 218 . 169 451 1047 512 . . 1865 . 532 . . . 1163 73 288 Melee 2988 | . . . 147 . 96 . 433 . . 93 . 502 . . . . . 120 743 . 777 . 41 36 . . . . . . Ramming 148 | . 25 . 2 . . 48 . 19 . . . . . 12 . . . . . . . . . . . . . 42 . . Kinetic 19124 | 14 601 268 596 . 397 1013 1685 1553 67 . . 914 1686 275 . . . 1550 175 175 . 565 1985 1004 . 272 971 . 693 2665 Thermal 12197 | 12 598 . . . . 593 . . 100 181 . 377 530 218 344 169 221 2696 483 . . 621 1286 793 . 115 1680 25 162 993 Explosive 2499 | . . . . . . . . . . 580 . 343 . . . . 312 394 295 . . 575 . . . . . . . . Electromagnetic 12350 | . . . . . . . . . 301 833 . 728 373 1942 439 451 788 1111 217 . . 1218 . 521 . . 579 1276 935 638 Impact 243 | . . . 147 . 96 . . . . . . . . . . . . . . . . . . . . . . . . . Slashing 2745 | . . . . . . . 433 . . 93 . 502 . . . . . 120 743 . 777 . 41 36 . . . . . . Piercing . | . . . . . . . . . . . . . . . . . . . . . . . . . . . . . . . Entropic 2207 | . . . . . . . . . . . . . . . . . . . . . . . . . . 488 . 1719 . . Highest Corruption 43 | . . . . . . . . 1 1 1 1 5 1 2 2 2 43 9 6 6 6 7 11 15 17 . 10 10 . 18 Average Corruption 4 | . . . . . . . . 1 1 1 1 3 1 1 2 2 5 5 5 6 6 6 4 14 10 . 5 7 . 12 Corruption Purged 21 | . . . . . . . . . . . . . . . . . . 20 . . . . . . . . . 1 . . Effects 520 | . . . . . . . . 2 6 3 2 40 3 9 8 2 13 75 34 32 12 26 21 101 9 . 33 21 . 68 Message Errors 120 | . . . . . . . . . 2 1 1 6 2 4 4 1 5 14 5 12 4 7 5 23 1 . 7 3 . 13 Matter Fused 99 | . . . . . . . . . . . . 11 . . . . . 10 8 6 2 6 3 19 2 . 8 7 . 17 Heat Flow Errors 52 | . . . . . . . . . . . . 11 . 1 2 . 2 11 4 4 . 1 . 6 1 . 4 2 . 3 Energy Discharges 50 | . . . . . . . . . . 1 1 4 . 3 . . 1 13 2 3 . 4 . 7 1 . 2 1 . 7 Parts Rejected 2 | . . . . . . . . . . . . . . . . . . 1 1 . . . . . . . . . . . Data Loss (minor) 57 | . . . . . . . . 2 4 . . 3 . 1 . . 2 9 9 6 4 . 2 8 1 . 1 3 . 2 Data Loss (major) 13 | . . . . . . . . . . . . 1 . . . . . 2 1 . 2 2 2 3 . . . . . . Misfires 17 | . . . . . . . . . . . . 1 . . . . 1 2 . . . 1 2 3 . . 2 1 . 4 Alerts 2 | . . . . . . . . . . . . . . . . . . . . . . . . . . . . 1 . 1 Misdirections 24 | . . . . . . . . . . . . . . . . . 1 . . . . . . 15 3 . . 2 . 3 Targeting Errors 77 | . . . . . . . . . . 1 . 2 1 . 2 1 1 13 4 1 . 5 6 15 . . 8 1 . 16 Weapon Failures 7 | . . . . . . . . . . . . 1 . . . . . . . . . . 1 2 . . 1 . . 2 Overload Shots 5 | . . . . . . . . . . . . . . . . . . 4 . . . . 1 . . . . . . . Effects 2 | . . . . . . . . . . . . . . . . . . . . . . . 2 . . . . . . . Meltdown 2 | . . . . . . . . . . . . . . . . . . . . . . . 2 . . . . . . . Overflow Damage 1473 | . . . 94 . 11 5 14 . . 28 . 181 12 89 . 31 60 32 332 . 93 57 80 32 . . 29 235 32 26 Projectiles 375 | . . . . . . . . . . . . . 12 71 . . 48 29 2 . . 14 80 . . . 29 33 32 25 Explosions 372 | . . . . . . . . . . 28 . 2 . 18 . 31 12 3 . . . 43 . 32 . . . 202 . 1 Melee 726 | . . . 94 . 11 5 14 . . . . 179 . . . . . . 330 . 93 . . . . . . . . . Knockbacks 89 | . . . 14 . 17 38 15 . . . . . 1 1 . . . . . . . . 3 . . . . . . . Impact 4 | . . . 2 . 1 . . . . . . . . 1 . . . . . . . . . . . . . . . . Kinetic 74 | . . . 9 . 14 36 11 . . . . . 1 . . . . . . . . . 3 . . . . . . . Secondary 11 | . . . 3 . 2 2 4 . . . . . . . . . . . . . . . . . . . . . . . Self-Inflicted Damage 966 | . 7 . . . . . . . 12 86 . . 78 . . . 24 59 8 . . 86 . 72 . . . 440 . 94 Shots 15 | . . . . . . . . . 1 2 . . 1 . . . 1 1 1 . . 3 . 1 . . . 3 . 1 Rammed 11 | . 2 . 2 . . 1 . 4 . . . . . 1 . . . . . . . . . . . . . 1 . . Targets Rammed 14 | . 4 . 2 . . 2 . 4 . . . . . 1 . . . . . . . . . . . . . 1 . . Kicked . | . . . . . . . . . . . . . . . . . . . . . . . . . . . . . . . Crushed 3 | . 2 . . . . 1 . . . . . . . . . . . . . . . . . . . . . . . . Highest Temperature 502 | . 180 21 168 . 122 200 453 138 63 182 . 198 159 185 196 . 98 502 264 236 . 254 259 282 238 150 219 195 44 215 Average Temperature 69 | . 43 9 57 . 39 59 78 34 23 66 . 106 29 21 101 . 34 98 98 97 . 21 88 92 77 42 61 45 15 70 Received Heat Transfer 6168 | . 483 114 132 . 144 396 309 361 24 252 . 372 720 263 144 27 315 378 123 . . 78 411 417 15 27 171 216 72 204 Effects 10 | . . . . . . . . . . . . . . . . . . 8 1 . . . . 1 . . . . . . Energy Bleed 4 | . . . . . . . . . . . . . . . . . . 2 1 . . . . 1 . . . . . . Interference 3 | . . . . . . . . . . . . . . . . . . 3 . . . . . . . . . . . . Matter Decay 1 | . . . . . . . . . . . . . . . . . . 1 . . . . . . . . . . . . Short Circuit 1 | . . . . . . . . . . . . . . . . . . 1 . . . . . . . . . . . . Damage (minor) 1 | . . . . . . . . . . . . . . . . . . 1 . . . . . . . . . . . . Siege Activations 10 | . . . . . . . . . . . . . . . . . . . . . . . . 1 . . 1 . 2 6 Total Turns 236 | . . . . . . . . . . . . . . . . . . . . . . . . 53 . . 30 . 35 118 Longest Duration 53 | . . . . . . . . . . . . . . . . . . . . . . . . 53 . . 30 . 29 42 Robots Corrupted 48 | . . . . . . . . . 1 2 . 1 3 2 1 2 2 3 2 . . 8 . 3 . . 2 7 7 2 Combat Hostiles 47 | . . . . . . . . . 1 2 . 1 3 2 1 1 2 3 2 . . 8 . 3 . . 2 7 7 2 Parts Fried 107 | . . . 2 . . . . . 1 6 . 5 3 10 . 4 7 11 4 . . 10 . 6 . . 4 19 12 3 Impact Corruptions 7 | . . . 4 . 1 2 . . . . . . . . . . . . . . . . . . . . . . . . Robots Melted . | . . . . . . . . . . . . . . . . . . . . . . . . . . . . . . . Combat Hostiles . | . . . . . . . . . . . . . . . . . . . . . . . . . . . . . . . Parts Melted 17 | . 1 . . . . 1 . . . . . . 2 . . . . 3 . . . 3 2 . . . 4 . . 1 Heat Transferred 12334 | 25 1394 . . . . 1244 . . 50 200 . 275 800 200 492 150 211 1922 518 . . 692 1184 550 . 148 1389 37 161 692 Parts Sabotaged . | . . . . . . . . . . . . . . . . . . . . . . . . . . . . . . . Parts Stolen 2 | . . . . . . . . . . 2 . . . . . . . . . . . . . . . . . . . . Parts Stripped . | . . . . . . . . . . . . . . . . . . . . . . . . . . . . . . . Power Chain Reactions 20 | . . . . . . . . . 2 3 . 1 . 2 . 1 1 3 . . . 1 . 4 . . . . 1 1 Missiles Intercepted . | . . . . . . . . . . . . . . . . . . . . . . . . . . . . . . . Alert | -11 -10 -9 -9 -9 -8 -8 -8 -7 -7 -7 -7 -6 -6 -6 -6 -6 -6 -5 -5 -5 -5 -4 -4 -4 -4 -3 -3 -3 -2 -1 ------- Run | Scr Mat Mat Min Exi Min Mat Sto Fac Low Low Dat Pro Fac Ext Cet Arc Hub Fac Upp Upp Zhi Pro Fac Upp War Pro Res Qua Res Acc Peak Influence 824 | 5 262 125 166 . 90 260 786 313 . . . . 308 308 442 123 272 824 . . . . 683 . . . 228 647 391 501 Initial 359 | . 3 110 36 . . 19 3 293 . . . . 93 150 81 96 31 7 . . . . 114 . . . . 3 359 184 Average 181 | 1 112 61 42 . 33 120 448 206 . . . . 153 118 311 96 124 269 . . . . 372 . . . 80 162 259 233 Maximum Alert Level 3 | . 1 . . . . 1 3 1 . . . . 1 1 2 . 1 3 . . . . 2 . . . 1 2 1 2 Low Security (%) 66 | 100 91 100 100 . 100 82 24 50 . . . . 69 86 7 100 72 55 . . . . 12 . . . 87 73 37 49 Level 1 22 | . 8 . . . . 17 21 49 . . . . 30 13 60 . 27 11 . . . . 36 . . . 12 7 62 41 Level 2 8 | . . . . . . . 41 . . . . . . . 32 . . 19 . . . . 51 . . . . 19 . 8 Level 3 2 | . . . . . . . 12 . . . . . . . . . . 13 . . . . . . . . . . . . Level 4 . | . . . . . . . . . . . . . . . . . . . . . . . . . . . . . . . Level 5 . | . . . . . . . . . . . . . . . . . . . . . . . . . . . . . . . High Security . | . . . . . . . . . . . . . . . . . . . . . . . . . . . . . . . Max Security . | . . . . . . . . . . . . . . . . . . . . . . . . . . . . . . . Squads Dispatched 64 | . 4 1 . . . 1 4 5 . . . . 4 4 . . 4 9 . 1 . 1 9 . . . 7 4 2 4 Investigation 9 | . . . . . . 1 . 2 . . . . 1 2 . . . . . 1 . . 2 . . . . . . . Extermination 17 | . . . . . . . . 1 . . . . 2 . . . 1 4 . . . . 2 . . . 2 1 . 4 Reinforcement 25 | . 4 1 . . . . 2 2 . . . . 1 2 . . 2 3 . . . . 2 . . . 1 3 2 . Assault 3 | . . . . . . . 1 . . . . . . . . . . 1 . . . 1 . . . . . . . . Garrison 10 | . . . . . . . 1 . . . . . . . . . 1 1 . . . . 3 . . . 4 . . . Intercept . | . . . . . . . . . . . . . . . . . . . . . . . . . . . . . . . Construction Impeded 3 | . . . . . . . . 1 . . . . . 1 . . . . . . . . 1 . . . . . . . Haulers Reinforced 1 | . . . . . . . . 1 . . . . . . . . . . . . . . . . . . . . . . Stealth | -11 -10 -9 -9 -9 -8 -8 -8 -7 -7 -7 -7 -6 -6 -6 -6 -6 -6 -5 -5 -5 -5 -4 -4 -4 -4 -3 -3 -3 -2 -1 --------- Run | Scr Mat Mat Min Exi Min Mat Sto Fac Low Low Dat Pro Fac Ext Cet Arc Hub Fac Upp Upp Zhi Pro Fac Upp War Pro Res Qua Res Acc Distress Signals 28 | . 4 2 . . . 2 1 1 . . . . . . 2 . 4 . . . . . 2 . 1 . . . 7 2 Communications Jammed 13 | . . . . . . . . . . . . . . . . . . . . . . . . . . . . 13 . . Distress Signals 13 | . . . . . . . . . . . . . . . . . . . . . . . . . . . . 13 . . Times Spotted 658 | . 34 15 19 . 7 36 39 18 6 25 . 28 27 33 18 21 39 55 9 . . 25 33 20 3 12 27 31 35 43 Peak Tracking Total 17 | . 6 6 6 . 3 5 7 3 5 4 . 11 8 7 6 16 17 7 4 . . 9 9 6 4 5 7 7 6 12 Tactical Retreats 32 | . 1 . 2 . 1 . 1 1 . 3 . 1 2 4 . 1 2 2 1 . . 1 . . . . 2 2 1 4 Traps | -11 -10 -9 -9 -9 -8 -8 -8 -7 -7 -7 -7 -6 -6 -6 -6 -6 -6 -5 -5 -5 -5 -4 -4 -4 -4 -3 -3 -3 -2 -1 ------- Run | Scr Mat Mat Min Exi Min Mat Sto Fac Low Low Dat Pro Fac Ext Cet Arc Hub Fac Upp Upp Zhi Pro Fac Upp War Pro Res Qua Res Acc Traps Triggered 15 | . . . . . . . 2 3 . . . . 1 3 . . . 2 . . . . 1 . . . 1 . . 2 Indirectly 1 | . . . . . . . . . . . . . . . . . . 1 . . . . . . . . . . . . Trap Hack Attempts . | . . . . . . . . . . . . . . . . . . . . . . . . . . . . . . . Triggered . | . . . . . . . . . . . . . . . . . . . . . . . . . . . . . . . Disarmed . | . . . . . . . . . . . . . . . . . . . . . . . . . . . . . . . Reprogrammed . | . . . . . . . . . . . . . . . . . . . . . . . . . . . . . . . Reused 15 | . . . . . . . . . . . . 1 . . . . 4 . . . . . . . . . 10 . . . Traps Extracted . | . . . . . . . . . . . . . . . . . . . . . . . . . . . . . . . Installed 24 | . . . . . . . . . . . . 1 . . . . 5 . . . . . . 4 . 2 12 . . . Triggered 26 | . . . . . . . . . . . . 2 . 1 . . 4 . 1 . . . . . 8 . 10 . . . Exploded 1 | . . . . . . . . 1 . . . . . . . . . . . . . . . . . . . . . . Machines | -11 -10 -9 -9 -9 -8 -8 -8 -7 -7 -7 -7 -6 -6 -6 -6 -6 -6 -5 -5 -5 -5 -4 -4 -4 -4 -3 -3 -3 -2 -1 ---------- Run | Scr Mat Mat Min Exi Min Mat Sto Fac Low Low Dat Pro Fac Ext Cet Arc Hub Fac Upp Upp Zhi Pro Fac Upp War Pro Res Qua Res Acc Machines Disabled 47 | . . . . . . . 4 . 2 . . 4 4 2 2 1 1 7 . 1 . . 4 2 . . . 11 1 1 Max in Single Turn 4 | . . . . . . . 1 . 1 . . 1 4 1 . . 1 1 . 1 . . 1 1 . . . 3 1 1 Garrison Access 7 | . . . . . . 1 1 . . . . . 1 . . . 1 1 . . . . . . . . . . 1 1 Network Hub 1 | . . . . . . . . . . . . . . . . . 1 . . . . . . . . . . . . . Machines Sabotaged . | . . . . . . . . . . . . . . . . . . . . . . . . . . . . . . . Garrisons Compromised . | . . . . . . . . . . . . . . . . . . . . . . . . . . . . . . . Overloaded Fab Kills . | . . . . . . . . . . . . . . . . . . . . . . . . . . . . . . . Fab Network Shutdowns . | . . . . . . . . . . . . . . . . . . . . . . . . . . . . . . . Hacking | -11 -10 -9 -9 -9 -8 -8 -8 -7 -7 -7 -7 -6 -6 -6 -6 -6 -6 -5 -5 -5 -5 -4 -4 -4 -4 -3 -3 -3 -2 -1 --------- Run | Scr Mat Mat Min Exi Min Mat Sto Fac Low Low Dat Pro Fac Ext Cet Arc Hub Fac Upp Upp Zhi Pro Fac Upp War Pro Res Qua Res Acc Machines Accessed 104 | . 2 4 . 1 . 6 7 8 . . 4 . 8 12 2 . 4 14 1 2 7 . 3 1 2 . 3 10 . 3 Terminals 59 | . 2 3 . . . 3 6 3 . . . . 3 12 2 . 3 10 . 1 . . 1 . . . 3 6 . 1 Fabricators 6 | . . . . . . . . 1 . . . . 2 . . . . 2 . . . . 1 . . . . . . . Repair Stations 7 | . . . . . . 1 1 1 . . . . 1 . . . . 1 . . . . . . . . . 2 . . Recycling Units 1 | . . . . . . . . 1 . . . . . . . . . . . . . . . . . . . . . . Scanalyzers 7 | . . 1 . . . 1 . 2 . . . . . . . . . 1 . . . . . . . . . 2 . . Garrison Access 7 | . . . . . . 1 . . . . . . 2 . . . 1 . . . . . 1 . . . . . . 2 Total Hacks 414 | . 8 12 . 1 . 18 22 31 . . 31 . 25 42 3 . 10 97 1 6 30 . 13 1 2 . 12 40 . 9 Successful 258 | . 5 8 . 1 . 10 11 19 . . 31 . 14 18 1 . 6 58 1 3 30 . 4 1 2 . 9 23 . 3 Failed 155 | . 3 4 . . . 8 11 12 . . . . 11 24 2 . 4 38 . 3 . . 9 . . . 3 17 . 6 Catastrophic 24 | . 1 . . . . 3 . 1 . . . . . 4 1 . . 8 . 1 . . 1 . . . 1 2 . 1 Database Lockouts 1 | . . . . . . . . . . . . . . . . . . 1 . . . . . . . . . . . . Manual 177 | . 4 6 . . . 6 6 6 . . . . 7 38 3 . 6 61 2 4 . . . . 1 . 6 18 . 3 Terminals 247 | . 8 10 . . . 9 19 10 . . . . 12 42 3 . 8 71 . 5 . . 6 . . . 12 27 . 5 Fabricators 22 | . . . . . . . . 2 . . . . 7 . . . . 10 . . . . 3 . . . . . . . Repair Stations 44 | . . . . . . 5 3 12 . . . . 3 . . . . 13 . . . . . . . . . 8 . . Recycling Units 3 | . . . . . . . . 3 . . . . . . . . . . . . . . . . . . . . . . Scanalyzers 17 | . . 2 . . . 3 . 4 . . . . . . . . . 3 . . . . . . . . . 5 . . Garrison Access 14 | . . . . . . 1 . . . . . . 3 . . . 2 . . . . . 4 . . . . . . 4 Terminal Hacks 151 | . 4 6 . 1 . 4 8 5 . . 31 . 5 6 1 . 2 23 1 2 30 . 2 1 2 . 8 8 . 1 Record 34 | . . . . 1 . . . . . . 11 . . . 1 . . . . 2 18 . . . 1 . . . . . Part Schematic 24 | . 1 1 . . . . . . . . 11 . 1 . . . . 6 . . 4 . . . . . . . . . Robot Schematic 6 | . . . . . . . . . . . 6 . . . . . . . . . . . . . . . . . . . Robot Analysis 5 | . . . . . . . . . . . . . . . . . . . . . 4 . . . . . . . . 1 Prototype ID Bank 10 | . . . . . . . 1 . . . 3 . . . . . . 1 . . 4 . . . . . 1 . . . Open Door 3 | . . . . . . . . . . . . . . . . . . . 1 . . . . 1 1 . . . . . Level Access Points 1 | . . . . . . . . . . . . . . . . . . . . . . . . . . . 1 . . . Branch Access Points 5 | . . . . . . 1 . 1 . . . . 1 . . . . 1 . . . . . . . . 1 . . . Emergency Access Points 2 | . . . . . . . . . . . . . . . . . . 1 . . . . . . . . . 1 . . Machine Index 1 | . . . . . . . . . . . . . . . . . . . . . . . . . . . 1 . . . Terminal Index 3 | . . . . . . . . . . . . . . . . . . 1 . . . . 1 . . . . 1 . . Fabricator Index 2 | . . 1 . . . . . . . . . . . . . . . 1 . . . . . . . . . . . . Repair Station Index 1 | . . . . . . . . . . . . . . . . . . 1 . . . . . . . . . . . . Scanalyzer Index 1 | . . . . . . . . . . . . . . . . . . . . . . . . . . . . 1 . . Alert Level 1 | . . . . . . 1 . . . . . . . . . . . . . . . . . . . . . . . . Unreport Threat 13 | . . 1 . . . 2 1 1 . . . . 1 1 . . . 2 . . . . 1 . . . 2 1 . . Locate Traps 4 | . . 1 . . . . 2 1 . . . . . . . . . . . . . . . . . . . . . . Recall Investigation 3 | . . . . . . . . . . . . . . 1 . . . 1 . . . . . . . . . 1 . . Recall Extermination 1 | . . . . . . . . . . . . . . . . . . 1 . . . . . . . . . . . . Recall Reinforcements 3 | . . . . . . . . . . . . . . 1 . . . 1 . . . . . . . . . 1 . . Hauler Manifests 4 | . 1 1 . . . . 1 . . . . . . . . . . 1 . . . . . . . . . . . . Registered Components 3 | . 1 . . . . . . . . . . . . . . . . 1 . . . . . . . . 1 . . . Registered Prototypes 1 | . . . . . . . . . . . . . . . . . . . . . . . . . . . 1 . . . Zone Layout 20 | . 1 1 . . . . 3 2 . . . . 2 3 . . 2 4 . . . . . . . . . 2 . . Fabricator Hacks 14 | . . . . . . . . 1 . . . . 4 . . . . 7 . . . . 2 . . . . . . . Load Schematic 7 | . . . . . . . . 1 . . . . 2 . . . . 3 . . . . 1 . . . . . . . Build 7 | . . . . . . . . . . . . . 2 . . . . 4 . . . . 1 . . . . . . . Repair Station Hacks 31 | . . . . . . 2 3 11 . . . . 1 . . . . 9 . . . . . . . . . 5 . . Scan Component 18 | . . . . . . 1 2 6 . . . . 1 . . . . 5 . . . . . . . . . 3 . . Repair 13 | . . . . . . 1 1 5 . . . . . . . . . 4 . . . . . . . . . 2 . . Recycling Unit Hacks . | . . . . . . . . . . . . . . . . . . . . . . . . . . . . . . . Scanalyzer 10 | . . 1 . . . 3 . 1 . . . . . . . . . 2 . . . . . . . . . 3 . . Insert Component 7 | . . 1 . . . 1 . 1 . . . . . . . . . 1 . . . . . . . . . 3 . . Analyze 3 | . . . . . . 2 . . . . . . . . . . . 1 . . . . . . . . . . . . Garrison Access Hacks 4 | . . . . . . 1 . . . . . . 1 . . . 1 . . . . . . . . . . . . 1 Seal Access 4 | . . . . . . 1 . . . . . . 1 . . . 1 . . . . . . . . . . . . 1 Unauthorized Hacks 48 | . 1 1 . . . . . 1 . . . . 3 12 . . 3 17 . 1 . . . . . . 1 7 . 1 Terminals 44 | . 1 1 . . . . . . . . . . 2 12 . . 3 15 . 1 . . . . . . 1 7 . 1 Track 15 | . 1 1 . . . . . . . . . . 1 3 . . 1 4 . 1 . . . . . . . 3 . . Assimilate 4 | . . . . . . . . . . . . . . . . . 1 3 . . . . . . . . . . . . Botnet 16 | . . . . . . . . . . . . . 1 3 . . 1 6 . . . . . . . . 1 3 . 1 Disrupt 5 | . . . . . . . . . . . . . . 4 . . . 1 . . . . . . . . . . . . Operators 4 | . . . . . . . . . . . . . . 2 . . . 1 . . . . . . . . . 1 . . Fabricators 3 | . . . . . . . . . . . . . 1 . . . . 2 . . . . . . . . . . . . Prioritize 1 | . . . . . . . . . . . . . . . . . . 1 . . . . . . . . . . . . Siphon 2 | . . . . . . . . . . . . . 1 . . . . 1 . . . . . . . . . . . . Repair Stations . | . . . . . . . . . . . . . . . . . . . . . . . . . . . . . . . Recycling Units 1 | . . . . . . . . 1 . . . . . . . . . . . . . . . . . . . . . . Tunnel 1 | . . . . . . . . 1 . . . . . . . . . . . . . . . . . . . . . . Scanalyzers . | . . . . . . . . . . . . . . . . . . . . . . . . . . . . . . . Garrison Access . | . . . . . . . . . . . . . . . . . . . . . . . . . . . . . . . Data Cores Recovered 1 | . 1 . . . . . . . . . . . . . . . . . . . . . . . . . . . . . Used 1 | . 1 . . . . . . . . . . . . . . . . . . . . . . . . . . . . . Hacking Detections 76 | . 2 3 . . . 5 7 6 . . . . 7 12 2 . 3 12 . 1 . . 3 . . . 3 8 . 2 Full Trace Events 9 | . 1 . . . . 1 . 1 . . . . 1 2 . . . . . 1 . . 2 . . . . . . . Feedback Events 1 | . . . . . . . . . . . . . . 1 . . . . . . . . . . . . . . . . Corruption 1 | . . . . . . . . . . . . . . 1 . . . . . . . . . . . . . . . . Feedback Blocked . | . . . . . . . . . . . . . . . . . . . . . . . . . . . . . . . Robot Schematics Acquired 6 | . . . . . . . . . . . 6 . . . . . . . . . . . . . . . . . . . Robots Built 1 | . . . . . . . . . . . . . 1 . . . . . . . . . . . . . . . . . Matter 252 | . . . . . . . . . . . . . 252 . . . . . . . . . . . . . . . . . Time 134 | . . . . . . . . . . . . . 134 . . . . . . . . . . . . . . . . . Total Robot Build Rating 4 | . . . . . . . . . . . . . 4 . . . . . . . . . . . . . . . . . Part Schematics Acquired 26 | . 1 1 . . . 1 . . . . 11 . 1 . . . . 7 . . 4 . . . . . . . . . Parts Built 10 | . . . . . . . . . . . . . 1 . . . . 8 . . . . 1 . . . . . . . Matter 1217 | . . . . . . . . . . . . . 285 . . . . 698 . . . . 234 . . . . . . . Time 450 | . . . . . . . . . . . . . 152 . . . . 240 . . . . 58 . . . . . . . Total Part Build Rating 56 | . . . . . . . . . . . . . 5 . . . . 44 . . . . 7 . . . . . . . Parts Repaired 13 | . . . . . . 1 1 5 . . . . . . . . . 4 . . . . . . . . . 2 . . Time 432 | . . . . . . 38 38 201 . . . . . . . . . 88 . . . . . . . . . 67 . . Parts Recycled . | . . . . . . . . . . . . . . . . . . . . . . . . . . . . . . . Recycled Matter . | . . . . . . . . . . . . . . . . . . . . . . . . . . . . . . . Retrieved Matter . | . . . . . . . . . . . . . . . . . . . . . . . . . . . . . . . Retrieved Components . | . . . . . . . . . . . . . . . . . . . . . . . . . . . . . . . Parts Scanalyzed 4 | . . 1 . . . 1 . 1 . . . . . . . . . 1 . . . . . . . . . . . . Part Schematics Acquired 2 | . . . . . . 1 . . . . . . . . . . . 1 . . . . . . . . . . . . Parts Damaged . | . . . . . . . . . . . . . . . . . . . . . . . . . . . . . . . Bothacking | -11 -10 -9 -9 -9 -8 -8 -8 -7 -7 -7 -7 -6 -6 -6 -6 -6 -6 -5 -5 -5 -5 -4 -4 -4 -4 -3 -3 -3 -2 -1 ------------ Run | Scr Mat Mat Min Exi Min Mat Sto Fac Low Low Dat Pro Fac Ext Cet Arc Hub Fac Upp Upp Zhi Pro Fac Upp War Pro Res Qua Res Acc Used RIF Installer . | . . . . . . . . . . . . . . . . . . . . . . . . . . . . . . . Robots Hacked . | . . . . . . . . . . . . . . . . . . . . . . . . . . . . . . . Non-combat . | . . . . . . . . . . . . . . . . . . . . . . . . . . . . . . . Combat . | . . . . . . . . . . . . . . . . . . . . . . . . . . . . . . . Robot Hacks Applied . | . . . . . . . . . . . . . . . . . . . . . . . . . . . . . . . Relay Couplers Released 6 | . . . . . . . 1 . . . . . . . . . . 1 . . . . . . . . . . 4 . Machine Destruction 2 | . . . . . . . 1 . . . . . . . . . . 1 . . . . . . . . . . . . Programmers 4 | . . . . . . . . . . . . . . . . . . . . . . . . . . . . . 4 . Robots Rewired 18 | . . . . . . . . . 1 . . . . 13 . . . . . . . 2 . 2 . . . . . . Allies Hacked 1 | . . . . . . . . . . . . . . . . . . 1 . . . . . . . . . . . . Hacks Repelled . | . . . . . . . . . . . . . . . . . . . . . . . . . . . . . . . Allies | -11 -10 -9 -9 -9 -8 -8 -8 -7 -7 -7 -7 -6 -6 -6 -6 -6 -6 -5 -5 -5 -5 -4 -4 -4 -4 -3 -3 -3 -2 -1 -------- Run | Scr Mat Mat Min Exi Min Mat Sto Fac Low Low Dat Pro Fac Ext Cet Arc Hub Fac Upp Upp Zhi Pro Fac Upp War Pro Res Qua Res Acc Total Allies 39 | . . . . . . . 1 . 1 . . 1 1 27 . . 1 3 . . . 2 . 2 . . . . . . Largest Group 18 | . . . . . . . 1 . 1 1 . 1 1 18 18 3 1 3 . . . 2 1 2 1 . . . . . Highest-Rated Group 613 | . . . . . . . 99 . 20 20 . 94 37 613 613 77 26 62 . . . 60 30 95 47 . . . . . Highest-Rated Ally 156 | . . . . . . . 99 . 20 20 . 94 37 156 143 37 26 26 . . . 30 30 48 47 . . . . . Total Orders 6 | . . . . . . . . . . . . . . . . . . . . . . . . . . 1 4 1 . . ROAM 1 | . . . . . . . . . . . . . . . . . . . . . . . . . . . 1 . . . EXPLORE 1 | . . . . . . . . . . . . . . . . . . . . . . . . . . 1 . . . . RETURN 4 | . . . . . . . . . . . . . . . . . . . . . . . . . . . 3 1 . . Ally Attacks 376 | . . . . . . . 42 . 2 10 . 13 . 168 109 2 . . . . . 13 3 14 . . . . . . Total Damage 8777 | . . . . . . . 1804 . 21 175 . 347 . 3185 2507 11 . . . . . 320 101 306 . . . . . . Kills 61 | . . . . . . . 17 . . 1 . 1 . 18 17 . . . . . . 2 2 3 . . . . . . Allies Corrupted 1 | . . . . . . . . . . . . . . . . . . . . . . . . . 1 . . . . . Allies Melted . | . . . . . . . . . . . . . . . . . . . . . . . . . . . . . . . Intel | -11 -10 -9 -9 -9 -8 -8 -8 -7 -7 -7 -7 -6 -6 -6 -6 -6 -6 -5 -5 -5 -5 -4 -4 -4 -4 -3 -3 -3 -2 -1 ------- Run | Scr Mat Mat Min Exi Min Mat Sto Fac Low Low Dat Pro Fac Ext Cet Arc Hub Fac Upp Upp Zhi Pro Fac Upp War Pro Res Qua Res Acc Robot Analysis Total 5 | . . . . . . . . . . . . . . . . . . . . . 4 . . . . . . . . 1 Derelict Logs Recovered 13 | . . . 1 . . . . . 3 1 . 1 . . . . . . 1 2 . 2 . 2 . . . . . . Drone Launches 18 | . . . . . . . . . . . . . . . . . . . . . . . . . . 4 13 1 . . Drone Recoveries 18 | . . . . . . . . . . . . . . . . . . . . . . . . . . 3 14 1 . . Decoded 0b10 Intel 5 | . . . . . . . . . . . . . . . . . . . . . . . . . . . 5 . . . Items 5 | . . . . . . . . . . . . . . . . . . . . . . . . . . . 5 . . . Exploration | -11 -10 -9 -9 -9 -8 -8 -8 -7 -7 -7 -7 -6 -6 -6 -6 -6 -6 -5 -5 -5 -5 -4 -4 -4 -4 -3 -3 -3 -2 -1 ------------- Run | Scr Mat Mat Min Exi Min Mat Sto Fac Low Low Dat Pro Fac Ext Cet Arc Hub Fac Upp Upp Zhi Pro Fac Upp War Pro Res Qua Res Acc Turns Passed 36747 | 82 1066 649 1625 774 1114 1449 1074 1545 1550 1888 148 2231 1554 2408 516 120 522 3346 1232 1058 307 828 634 1683 1390 831 1215 723 1617 1568 Spaces Moved 18965 | 41 471 282 784 375 500 575 436 634 816 952 81 981 685 1090 261 55 250 1546 896 777 244 593 291 832 767 616 623 685 1062 764 Core 5 | 5 . . . . . . . . . . . . . . . . . . . . . . . . . . . . . . Treads 11949 | 36 414 245 784 375 500 575 436 531 816 952 81 980 365 770 261 55 250 682 . . . . 22 663 666 . 147 . 579 764 Legs 321 | . . . . . . . . . . . . 1 . 320 . . . . . . . . . . . . . . . . Wheels 611 | . 57 37 . . . . . 103 . . . . 320 . . . . . . . . . . . . . . . 94 . Hover 6079 | . . . . . . . . . . . . . . . . . . 864 896 777 244 593 269 169 101 616 476 685 389 . Flight . | . . . . . . . . . . . . . . . . . . . . . . . . . . . . . . . Fastest Speed 36 | 50 130 130 190 190 210 186 183 130 183 183 183 180 130 150 160 160 160 115 123 123 100 100 100 117 113 113 97 44 36 155 Average Speed 156 | 151 161 184 190 204 210 189 184 174 183 183 183 188 163 185 161 160 160 152 123 128 110 100 124 169 171 113 129 54 121 158 Slowest Speed 281 | 160 180 200 190 210 210 190 186 250 183 205 183 240 205 240 180 160 180 281 123 130 130 100 270 197 180 113 200 100 190 190 Overloaded Moves . | . . . . . . . . . . . . . . . . . . . . . . . . . . . . . . . Propulsion Burnouts . | . . . . . . . . . . . . . . . . . . . . . . . . . . . . . . . Robots Hopped . | . . . . . . . . . . . . . . . . . . . . . . . . . . . . . . . Cave-ins Triggered . | . . . . . . . . . . . . . . . . . . . . . . . . . . . . . . . Teleports 4 | . . . . . . . . . . . . . . . . . . . . . . . 1 . . . . 2 . 1 Exploration Rate (%) 59 | 4 53 31 98 84 98 35 73 18 97 90 71 91 16 85 82 78 35 36 89 88 62 75 12 81 82 69 18 47 30 19 Regions Visited 30 Branch Regions 20 Pre-discovered Areas 9 | . . . . 1 . . . 1 . 1 1 . . . . . . . 1 . 3 1 . . . . . . . . Known Exits Taken 13 | . . . . . . 1 . 1 . . . . 1 . . 1 1 1 . . . 1 1 1 1 1 1 1 . . Unknown Exits Taken 17 | 1 1 1 1 1 1 . 1 . 1 1 1 1 . 1 1 . . . 1 1 1 . . . . . . . 1 . Scrap Searched 22 | . . . 2 . 1 . . . 2 3 . 3 . . . . . . 2 3 . 3 . 2 . 1 . . . . Spaces Dug 83 | . . . . . . . 2 3 . . . 1 5 . . . . 10 31 7 . 12 3 1 5 1 . . . 2 Terrain Destroyed 644 | . . . . . . . 2 3 5 51 . 20 60 11 . 3 16 47 62 7 . 49 43 45 6 21 4 145 8 36 Melee 19 | . . . . . . . 2 3 . . . . 2 . . . . 5 . 7 . . . . . . . . . . Projectile 195 | . . . . . . . . . . 3 . 7 8 . . . . 17 13 . . 17 32 10 6 21 4 23 8 26 AOE 430 | . . . . . . . . . 5 48 . 13 50 11 . 3 16 25 49 . . 32 11 35 . . . 122 . 10 Terrain Rammed . | . . . . . . . . . . . . . . . . . . . . . . . . . . . . . . . Walls Destroyed . | . . . . . . . . . . . . . . . . . . . . . . . . . . . . . . . Machines Disabled . | . . . . . . . . . . . . . . . . . . . . . . . . . . . . . . . Actions | -11 -10 -9 -9 -9 -8 -8 -8 -7 -7 -7 -7 -6 -6 -6 -6 -6 -6 -5 -5 -5 -5 -4 -4 -4 -4 -3 -3 -3 -2 -1 --------- Run | Scr Mat Mat Min Exi Min Mat Sto Fac Low Low Dat Pro Fac Ext Cet Arc Hub Fac Upp Upp Zhi Pro Fac Upp War Pro Res Qua Res Acc Total 24056 | 55 627 379 853 383 536 813 619 975 855 1061 81 1268 969 1405 340 73 341 2321 979 822 275 763 457 1035 841 707 922 1000 1318 983 Wait 1608 | . 29 32 5 . 5 90 49 220 3 36 . 140 98 18 10 . 30 377 16 6 . 80 27 33 7 23 61 129 24 60 Move 18934 | 40 470 281 783 374 499 574 435 633 815 951 80 980 684 1089 260 54 249 1545 895 776 243 592 290 831 766 615 622 684 1061 763 Hop . | . . . . . . . . . . . . . . . . . . . . . . . . . . . . . . . Pick Up 463 | 6 12 16 8 2 3 23 22 15 4 11 . 20 29 17 13 1 7 78 6 6 5 4 14 29 13 4 29 28 25 13 Fast Attach 251 | 7 4 1 . 3 . 4 6 14 1 5 . 8 7 9 10 . . 21 1 4 7 5 5 5 11 3 16 18 54 22 Attach 231 | . 4 6 2 . 2 8 10 2 . 5 . 9 16 5 2 2 8 23 2 . . 3 18 23 2 4 23 22 17 13 Detach 74 | . 1 . . 2 . 3 1 1 . 2 . 4 2 1 . . . 7 . . 1 . 5 8 1 1 8 8 15 3 Swap 273 | 1 6 9 2 . . 8 10 12 11 5 1 12 14 5 5 . 1 48 13 4 1 13 13 13 9 7 12 9 15 14 Drop 508 | . 7 12 7 2 . 13 30 17 7 10 . 18 26 22 24 1 8 51 9 9 12 9 5 15 26 6 41 43 51 27 Fire 1400 | 1 90 22 28 . 24 88 48 54 13 35 . 70 89 70 16 15 33 158 30 9 . 48 76 55 6 42 98 58 56 68 Melee 76 | . . . 16 . 3 . 6 3 . 1 . 6 2 . . . . 13 7 8 6 . 4 1 . . . . . . Ram 2 | . 1 . . . . . . . . . . . . . . . . . . . . . . . . . . 1 . . Kick . | . . . . . . . . . . . . . . . . . . . . . . . . . . . . . . . Crush 12 | . 3 . 2 . . 2 . 4 . . . . . 1 . . . . . . . . . . . . . . . . Escape Stasis 16 | . . . . . . . 2 . . . . . 2 12 . . . . . . . . . . . . . . . . Rewire 184 | . . . . . . . . . 1 . . . . 156 . . . . . . . 9 . 18 . . . . . . Trap 24 | . . . . . . . . . . . . 1 . . . . 5 . . . . . . 4 . 2 12 . . . Miscellaneous . | . . . . . . . . . . . . . . . . . . . . . . . . . . . . . . . Route ------- -11/Scrapyard -10/Materials (discovered 3 exits: *Mat x2 / [*Min]) -9/Materials -9/Mines (discovered 3 exits: *Mat x2 / *Exi) -9/Exiles (discovered 2 exits: [*Min x2]) -8/Mines (discovered 2 exits: *Mat x2) -8/Materials (discovered 2 exits: *Fac / *Sto) -8/Storage -7/Factory (discovered 2 exits: *Low x2) -7/Lower Caves -7/Lower Caves (discovered 2 exits: *Fac / *Dat) -7/Data Miner -6/Proximity Caves -6/Factory (discovered 4 exits: Low x2 / *Ext x2) -6/Extension (discovered 2 exits: *Fac / *Cet) -6/Cetus (discovered 2 exits: *Fac / [*Arc]) -6/Archives -6/Hub_04(d) (discovered 2 exits: *Fac x2) -5/Factory (discovered 5 exits: *Fac x3 / *Upp x2) -5/Upper Caves -5/Upper Caves (discovered 2 exits: *Fac / *Zhi) -5/Zhirov -4/Proximity Caves -4/Factory -4/Upper Caves (discovered 2 exits: *Upp / *War) -4/Warlord -3/Proximity Caves -3/Research (discovered 6 exits: Res x3 / Arm / *Qua x2) -3/Quarantine -2/Research -1/Access Tau Ceti IV Orbit History --------- Turn | Location | Event 33 | -11/Scrapyard | Discovered new exit (range 15) 83 | -11/Scrapyard | Entered Materials 302 | -10/Materials | Build established: Mutant 565 | -10/Materials | Discovered new exit (range 8) 570 | -10/Materials | Discovered new exit (range 16) 997 | -10/Materials | Core integrity fell below 50% 1059 | -10/Materials | Lost 4 parts (1p2n1w) 1119 | -10/Materials | Discovered new exit (range 7) 1149 | -10/Materials | Entered another Materials area 1149 | -9/Materials | Evolved 2 slots: Utility x2 1534 | -9/Materials | Build established: Scavenger-Mutant 1748 | -9/Materials | Discovered new exit (range 12) 1798 | -9/Materials | Entered Mines 1812 | -9/Mines | Met a Derelict bent on vengeance 1929 | -9/Mines | Learned Materials emergency access door positions 2009 | -9/Mines | Build established: Mutant 2479 | -9/Mines | Discovered new exit (range 6) 2589 | -9/Mines | Deemed a non-threat by the Exiles lab entrance 2589 | -9/Mines | Discovered new exit (range 5) 2979 | -9/Mines | Excavation squad dispatched 2979 | -9/Mines | A large section of the Mines collapsed 2987 | -9/Mines | Discovered new exit (range 11) 3423 | -9/Mines | Entered Exiles 3478 | -9/Exiles | Discovered new exit (range 14) 3527 | -9/Exiles | Met 8R-AWN 3554 | -9/Exiles | Met EX-HEX 3664 | -9/Exiles | Met EX-DEC 3709 | -9/Exiles | Visited The Gauntlet 3918 | -9/Exiles | Build established: Hauler-Mutant 3944 | -9/Exiles | Learned location of Zion (-6) 4002 | -9/Exiles | Met EX-BIN 4169 | -9/Exiles | Discovered new exit (range 14) 4197 | -9/Exiles | Entered Mines 4723 | -8/Mines | Discovered new exit (range 5) 5069 | -8/Mines | Discovered new exit (range 9) 5311 | -8/Mines | Entered Materials 5311 | -8/Materials | Evolved 2 slots: Propulsion x1, Utility x1 6066 | -8/Materials | Identified exit to Storage 6082 | -8/Materials | Discovered new exit (range 16) 6706 | -8/Materials | Repaired Insulated Plating 6760 | -8/Materials | Entered Storage 6985 | -8/Storage | Destroyed 9 combat bots 7012 | -8/Storage | Met 01-MTF 7243 | -8/Storage | Garrison activated, responded to threat 7704 | -8/Storage | Repaired Arm. Treads 7727 | -8/Storage | Discovered new exit (range 9) 7806 | -8/Storage | Destroyed 01-MTF 7819 | -8/Storage | Found Prototype Device 7819 | -8/Storage | Identified 01-MTF's Autohacker 7834 | -8/Storage | Entered Factory 7834 | -7/Factory | Evolved 2 slots: Utility x2 7896 | -7/Factory | Identified exit to Lower Caves 7959 | -7/Factory | Repaired Hrd. Light Armor Plating 7998 | -7/Factory | Repaired Insulated Plating 8032 | -7/Factory | Repaired Imp. Treads 8071 | -7/Factory | Repaired EM Pulse Cannon 8133 | -7/Factory | Repaired Broken Gauss Rifle 9379 | -7/Factory | Entered Lower Caves 9556 | -7/Lower Caves | Attracted the attention of an 0b10 outpost 9861 | -7/Lower Caves | Build established: Scavenger-Mutant 9883 | -7/Lower Caves | Learned 4 Factory zone layouts 10284 | -7/Lower Caves | Attacked by a delusional Derelict stockpiling parts 10356 | -7/Lower Caves | Build established: Hauler-Mutant 10605 | -7/Lower Caves | Encountered a Warlord checkpoint 10608 | -7/Lower Caves | Discovered new exit (range 6) 10630 | -7/Lower Caves | Learned location of 1 exit from Factory 10639 | -7/Lower Caves | Learned Factory machine intel 10929 | -7/Lower Caves | Entered another Lower Caves area 10929 | -7/Lower Caves | Accompanied by 1 ally 10940 | -7/Lower Caves | Discovered new exit (range 11) 12088 | -7/Lower Caves | Discovered new exit (range 10) 12732 | -7/Lower Caves | Imp. Grenade Launcher stolen by Master Thief 12740 | -7/Lower Caves | Imp. Treads stolen by Master Thief 12817 | -7/Lower Caves | Entered Data Miner 12817 | -7/Data Miner | Discovered new exit (range 6) 12852 | -7/Data Miner | Met Data Miner 12891 | -7/Data Miner | Learned location of Section 7 (-3) 12891 | -7/Data Miner | Acquired the access code to Warlord's prototype stash 12921 | -7/Data Miner | Received God Mode back door access code from Data Miner 12965 | -7/Data Miner | Entered Proximity Caves 13467 | -6/Proximity Caves | Learned Factory emergency access door positions 13500 | -6/Proximity Caves | Escorted by Enhanced Grunt 13631 | -6/Proximity Caves | Found Prototype Device 13631 | -6/Proximity Caves | Identified Exp. Thermal Shield 14673 | -6/Proximity Caves | Discovered new exit (range 14) 14691 | -6/Proximity Caves | Build established: Scavenger-Mutant 14874 | -6/Proximity Caves | Attracted the attention of an 0b10 base 14917 | -6/Proximity Caves | Lost 4 parts (1n2u1w) 15133 | -6/Proximity Caves | Attracted the attention of an 0b10 checkpoint 15196 | -6/Proximity Caves | Entered Factory 15196 | -6/Factory | Evolved 2 slots: Propulsion x1, Utility x1 15197 | -6/Factory | Identified exit to Lower Caves 15200 | -6/Factory | Loaded intel: 289 machine locations 15480 | -6/Factory | Fabricated Lgt. Regenerative Plating (x1) 15518 | -6/Factory | Lost 3 parts (2u1w) 15807 | -6/Factory | Identified exit to Extension 15927 | -6/Factory | Build established: Hauler-Mutant 15957 | -6/Factory | Found Prototype Processor 15958 | -6/Factory | Identified Exp. Targeting Computer 16086 | -6/Factory | Destroyed 8 combat bots 16259 | -6/Factory | Lost 3 parts (1n1u1w) 16707 | -6/Factory | Fabricated I-36 Angel (x1) 16750 | -6/Factory | Entered Extension 16750 | -6/Extension | Accompanied by 1 ally 16968 | -6/Extension | Rescued A7 16980 | -6/Extension | Lost 3 parts (1p2n) 17175 | -6/Extension | Rescued a captive Derelict 18148 | -6/Extension | Spotted B-75 Beast 18162 | -6/Extension | Allies destroyed B-75 Beast 18197 | -6/Extension | Spotted B-75 Beast 18224 | -6/Extension | Allies destroyed B-75 Beast 18250 | -6/Extension | Disrupted transfer network 18338 | -6/Extension | Rescued a captive Derelict 18338 | -6/Extension | Rescued a captive Derelict 18404 | -6/Extension | Rescued a captive Derelict 18405 | -6/Extension | Incoming investigation squad redirected 18405 | -6/Extension | Rescued a captive Derelict 18556 | -6/Extension | Rescued a captive Derelict 18595 | -6/Extension | Rescued a captive Derelict 18623 | -6/Extension | Incoming investigation squad redirected 18755 | -6/Extension | Rescued a captive Derelict 18756 | -6/Extension | Rescued a captive Derelict 18843 | -6/Extension | Rescued a captive Derelict 18844 | -6/Extension | Rescued a captive Derelict 19020 | -6/Extension | Rescued a captive Derelict 19021 | -6/Extension | Rescued a captive Derelict 19102 | -6/Extension | Discovered new exit (range 10) 19104 | -6/Extension | Discovered new exit (range 6) 19158 | -6/Extension | Entered Cetus 19158 | -6/Cetus | Accompanied by 18 allies (A7) 19163 | -6/Cetus | Acquired a Cetus Manufacturing Module code from A7 19180 | -6/Cetus | Spotted Cetus Guard 19180 | -6/Cetus | Spotted Cetus Guard 19182 | -6/Cetus | Spotted Cetus Guard 19182 | -6/Cetus | Spotted Cetus Guard 19189 | -6/Cetus | Allies destroyed Cetus Guard 19191 | -6/Cetus | Allies destroyed Cetus Guard 19195 | -6/Cetus | Allies destroyed Cetus Guard 19196 | -6/Cetus | Allies destroyed Cetus Guard 19299 | -6/Cetus | Cetus Manufacturing Module disabled 19329 | -6/Cetus | Failed to start Cetus Manufacturing Module 19344 | -6/Cetus | Core integrity fell below 50% 19376 | -6/Cetus | Remotely autohacked Sealed Heavy Doors 19381 | -6/Cetus | Escorted A7 to Cetus Mainframe 19452 | -6/Cetus | Discovered new exit (range 15) 19480 | -6/Cetus | Spotted Cetus Guard 19481 | -6/Cetus | Spotted Cetus Guard 19483 | -6/Cetus | Spotted Cetus Guard 19484 | -6/Cetus | Spotted Cetus Guard 19493 | -6/Cetus | Allies destroyed Cetus Guard 19494 | -6/Cetus | Build established: Scavenger-Mutant 19497 | -6/Cetus | Allies destroyed Cetus Guard 19510 | -6/Cetus | Destroyed Cetus Guard 19518 | -6/Cetus | Discovered new exit (range 16) 19519 | -6/Cetus | Extracted ID and sensor layout for unrecognized location from A7's data core 19521 | -6/Cetus | Destroyed Cetus Guard 19539 | -6/Cetus | Met Revision 17 19556 | -6/Cetus | Lost 3 parts (1u2w) 19674 | -6/Cetus | Entered Archives 19674 | -6/Archives | Accompanied by 3 allies 19716 | -6/Archives | Met Zhirov 19722 | -6/Archives | Reinforcements dispatched to Archives 19767 | -6/Archives | Reinforcements dispatched to Archives 19769 | -6/Archives | Zhirov warped through subspace 19771 | -6/Archives | Discovered new exit (range 15) 19787 | -6/Archives | Zhirov detonated Archives 19793 | -6/Archives | Identified exit to Hub_04(d) 19794 | -6/Archives | Entered Hub_04(d) 19878 | -6/Hub_04(d) | Discovered new exit (range 16) 19924 | -6/Hub_04(d) | Identified exit to Factory 20007 | -6/Hub_04(d) | Garrison activated, responded to threat 20060 | -6/Hub_04(d) | Discovered exit to Factory (range 5) 20233 | -6/Hub_04(d) | Network Hub disabled 20238 | -6/Hub_04(d) | Spotted Lightning 20238 | -6/Hub_04(d) | Spotted Lightning 20238 | -6/Hub_04(d) | Spotted Lightning 20238 | -6/Hub_04(d) | Spotted Lightning 20238 | -6/Hub_04(d) | Spotted Lightning 20240 | -6/Hub_04(d) | System corruption reached 10% 20242 | -6/Hub_04(d) | Spotted Lightning 20245 | -6/Hub_04(d) | Spotted Lightning 20279 | -6/Hub_04(d) | Spotted Lightning 20282 | -6/Hub_04(d) | Spotted Lightning 20286 | -6/Hub_04(d) | System corruption reached 30% 20314 | -6/Hub_04(d) | Core integrity fell below 20% 20316 | -6/Hub_04(d) | Entered Factory 20316 | -5/Factory | Evolved 2 slots: Power x1, Utility x1 20344 | -5/Factory | Lost 11 parts (2p3n3u3w) 20752 | -5/Factory | Discovered new exit (range 11) 20810 | -5/Factory | Identified exit to Factory 20891 | -5/Factory | Lost 3 parts (1p2u) 21109 | -5/Factory | Identified exit to Upper Caves 21257 | -5/Factory | Central database locked down 21671 | -5/Factory | Fabricated Powered Armor (x2) 21864 | -5/Factory | Lost 3 parts (3n) 22064 | -5/Factory | Repaired Adv. Heat Sink 22078 | -5/Factory | Repaired Hcp. Storage Unit 22131 | -5/Factory | Repaired Powered Armor 22166 | -5/Factory | Repaired Neutron Cannon 22370 | -5/Factory | Discovered exit to Factory (range 20) 22467 | -5/Factory | Build established: Hacker-Mutant 22598 | -5/Factory | Discovered exit to Factory (range 20) 22788 | -5/Factory | Garrison activated, responded to threat 22818 | -5/Factory | Incoming assault squad redirected 22935 | -5/Factory | Lost 5 parts (2n1u2w) 23235 | -5/Factory | Lost 3 parts (1p2n) 23244 | -5/Factory | Destroyed 7 combat bots 23467 | -5/Factory | Fabricated Cmb. Gravmag System (x2) 23528 | -5/Factory | Fabricated Cmb. Gravmag System (x2) 23592 | -5/Factory | Fabricated Imp. Weapon Cycler (x2) 23662 | -5/Factory | Entered Upper Caves 23816 | -5/Upper Caves | Attracted the attention of an 0b10 checkpoint 24663 | -5/Upper Caves | Build established: Hauler-Mutant 24739 | -5/Upper Caves | Discovered new exit (range 2) 24894 | -5/Upper Caves | Entered another Upper Caves area 24904 | -5/Upper Caves | Discovered exit to Factory (range 13) 25252 | -5/Upper Caves | Learned Factory terminal intel 25376 | -5/Upper Caves | Encountered a Warlord checkpoint 25457 | -5/Upper Caves | Build established: Machinist-Mutant 25772 | -5/Upper Caves | Discovered new exit (range 7) 25850 | -5/Upper Caves | Found Alien Artifact 25850 | -5/Upper Caves | Identified Dimensional Node Initializer 25850 | -5/Upper Caves | Initialized slip node 25952 | -5/Upper Caves | Entered Zhirov 25952 | -5/Zhirov | Discovered new exit (range 3) 25999 | -5/Zhirov | Learned location of Quarantine (-3) 25999 | -5/Zhirov | Learned location of Testing (-2) 25999 | -5/Zhirov | Learned location of Command (-1) 26034 | -5/Zhirov | Found Alien Artifact 26049 | -5/Zhirov | Found Alien Artifact 26049 | -5/Zhirov | Identified Integrated Reactor 26049 | -5/Zhirov | Installed Integrated Reactor, increased core energy generation (+10) 26259 | -5/Zhirov | Entered Proximity Caves 26330 | -4/Proximity Caves | Attracted the attention of an 0b10 outpost 26332 | -4/Proximity Caves | Core integrity fell below 50% 26363 | -4/Proximity Caves | Destroyed 10 combat bots 26379 | -4/Proximity Caves | Build established: Hauler-Mutant 26872 | -4/Proximity Caves | Learned Research emergency access door positions 27033 | -4/Proximity Caves | Discovered exit to Factory (range 10) 27087 | -4/Proximity Caves | Entered Factory 27087 | -4/Factory | Accompanied by 1 ally 27087 | -4/Factory | Evolved 2 slots: Utility x2 27088 | -4/Factory | Loaded intel: 20 terminal locations 27121 | -4/Factory | Garrison activated, responded to threat 27181 | -4/Factory | Incoming investigation squad redirected 27294 | -4/Factory | Fabricated HERF Cannon? 27315 | -4/Factory | Identified Transdimensional Reconstructor 27315 | -4/Factory | Warped through subspace 27344 | -4/Factory | Lost 4 parts (3u1w) 27462 | -4/Factory | Destroyed 10 combat bots 27591 | -4/Factory | Discovered new exit (range 8) 27597 | -4/Factory | Identified exit to Upper Caves 27655 | -4/Factory | System corruption reached 10% 27721 | -4/Factory | Entered Upper Caves 27748 | -4/Upper Caves | Found Alien Artifact 27748 | -4/Upper Caves | Identified Core Expander 27748 | -4/Upper Caves | Installed Core Expander, added new Power slot 27852 | -4/Upper Caves | Learned location of 1 exit from Research 28059 | -4/Upper Caves | Attracted the attention of an 0b10 outpost 28141 | -4/Upper Caves | Destroyed 8 combat bots 28150 | -4/Upper Caves | Lost 11 parts (3p4u4w) 28359 | -4/Upper Caves | Build established: Scavenger-Mutant 28567 | -4/Upper Caves | Learned Research terminal intel 29342 | -4/Upper Caves | A Derelict revealed a hidden shortcut to "reach the base" 29353 | -4/Upper Caves | Discovered new exit (range 10) 29379 | -4/Upper Caves | Identified exit to Upper Caves 29402 | -4/Upper Caves | Identified exit to Warlord 29404 | -4/Upper Caves | Entered Warlord 29404 | -4/Warlord | Accompanied by 1 ally 29466 | -4/Warlord | System corruption cleaned by Quarantine Array 29509 | -4/Warlord | Discovered new exit (range 12) 29615 | -4/Warlord | System corruption cleaned by Quarantine Array 29821 | -4/Warlord | Found Prototype Device 29822 | -4/Warlord | Identified Minesniffer Drone Bay 29826 | -4/Warlord | Found Minesniffer Drone Bay 29831 | -4/Warlord | Found Minesniffer Drone Bay 30129 | -4/Warlord | Found Signal Generator 30213 | -4/Warlord | Remotely autohacked Sealed Heavy Doors 30237 | -4/Warlord | Visited the Vortex Lab 30247 | -4/Warlord | Warlord's base attacked by MAIN.C 30248 | -4/Warlord | Found Prototype Energy Gun 30248 | -4/Warlord | Identified Vortex Rail 30252 | -4/Warlord | Found Vortex Rail 30261 | -4/Warlord | Found Prototype Energy Gun 30261 | -4/Warlord | Identified Vortex Rifle 30265 | -4/Warlord | Found Vortex Rifle 30277 | -4/Warlord | Found Prototype Launcher 30277 | -4/Warlord | Identified Vortex Catalyst Activator 30515 | -4/Warlord | Met Warlord 30538 | -4/Warlord | Opened Warlord's prototype stash 30545 | -4/Warlord | Found Prototype Reactor 30545 | -4/Warlord | Identified Vortex Chain Reactor 30550 | -4/Warlord | Found Exp. Targeting Computer 30559 | -4/Warlord | Found Prototype Processor 30559 | -4/Warlord | Identified Exp. Target Analyzer 30563 | -4/Warlord | Found Prototype Device 30563 | -4/Warlord | Identified System Purifier 30570 | -4/Warlord | Found Prototype Hackware 30570 | -4/Warlord | Identified System Mapper 30597 | -4/Warlord | Warlord forces counterattacked 30741 | -4/Warlord | Opened side exit 30787 | -4/Warlord | Spotted Executioner 30793 | -4/Warlord | Identified exit to Proximity Caves 30794 | -4/Warlord | Entered Proximity Caves 30849 | -3/Proximity Caves | Build established: Generator-Mutant 31524 | -3/Proximity Caves | Attracted the attention of an 0b10 checkpoint 31589 | -3/Proximity Caves | Discovered new exit (range 15) 31623 | -3/Proximity Caves | Attracted the attention of an 0b10 outpost 31623 | -3/Proximity Caves | Identified exit to Research 31625 | -3/Proximity Caves | Entered Research 31625 | -3/Research | Accompanied by 1 ally 31625 | -3/Research | Evolved 2 slots: Propulsion x2 31626 | -3/Research | Identified exit to Research 31628 | -3/Research | Loaded intel: 21 terminal locations 32191 | -3/Research | Garrison activated, responded to threat 32341 | -3/Research | Lost 5 parts (4n1w) 32478 | -3/Research | Identified exit to Armory 32478 | -3/Research | Identified exit to Quarantine 32577 | -3/Research | Lost 4 parts (1p2n1u) 32641 | -3/Research | System corruption reached 10% 32694 | -3/Research | Garrison activated, responded to threat 32833 | -3/Research | Remotely autohacked Sealed Blast Doors 32840 | -3/Research | Entered Quarantine 32874 | -3/Quarantine | Repaired Lrg. Storage Unit 32895 | -3/Quarantine | Build established: Scavenger-Mutant 32941 | -3/Quarantine | Repaired Cld. Antigrav System 32953 | -3/Quarantine | Found Alien Artifact 33048 | -3/Quarantine | Found Alien Artifact 33048 | -3/Quarantine | Identified Matter Drive 33147 | -3/Quarantine | Found Alien Artifact 33170 | -3/Quarantine | Found Transdimensional Reconstructor 33171 | -3/Quarantine | Found Alien Artifact 33173 | -3/Quarantine | Found Alien Artifact 33179 | -3/Quarantine | Found Dimensional Node Initializer 33179 | -3/Quarantine | Initialized slip node 33186 | -3/Quarantine | Found Transdimensional Reconstructor 33219 | -3/Quarantine | Discovered exit to Research (range 15) 33248 | -3/Quarantine | Identified Phase Redirector 33248 | -3/Quarantine | Identified Hpw. Transdimensional Reconstructor (x2) 33248 | -3/Quarantine | Identified Core Reset Matrix 33260 | -3/Quarantine | Used Core Reset Matrix 33264 | -3/Quarantine | Detected hypermatrix surge 33264 | -3/Quarantine | Sensed 7 artifacts in vicinity 33267 | -3/Quarantine | Discovered exit to Research (range 10) 33426 | -3/Quarantine | Met incapacitated Sigix Warrior 33426 | -3/Quarantine | Lockdown squad dispatched 33434 | -3/Quarantine | Destroyed 13 combat bots 33455 | -3/Quarantine | Lost 3 parts (1p1n1u) 33513 | -3/Quarantine | Spotted Lightning 33513 | -3/Quarantine | Spotted Lightning 33513 | -3/Quarantine | Spotted Lightning 33514 | -3/Quarantine | Destroyed Lightning 33519 | -3/Quarantine | Warped through subspace to slip node 33523 | -3/Quarantine | Warped through subspace to slip node 33544 | -3/Quarantine | Found Phase Armor 33549 | -3/Quarantine | Lost 6 parts (1p2n2u1w) 33563 | -3/Quarantine | Entered Research 33563 | -2/Research | Warlord forces began assault on 0b10 33563 | -2/Research | Evolved 2 slots: Utility x2 33673 | -2/Research | Research machine network offline 33965 | -2/Research | Met up with Warlord 34012 | -2/Research | Spotted V9-KQ2(L) 34151 | -2/Research | Borebot progress halted 34167 | -2/Research | Borebot progress halted 34178 | -2/Research | Borebot progress halted 34316 | -2/Research | Spotted Executioner 34333 | -2/Research | Spotted Executioner 34414 | -2/Research | Found Prototype Slashing Weapon 34719 | -2/Research | Spotted Striker 34721 | -2/Research | Spotted Striker 34739 | -2/Research | Destroyed Striker 34749 | -2/Research | Destroyed Striker 34779 | -2/Research | Identified Particle Cleaver 34836 | -2/Research | Found Prototype Processor 34836 | -2/Research | Identified Exp. Core Analyzer 34850 | -2/Research | Warlord invited to help at Command 34874 | -2/Research | Spotted Executioner 34874 | -2/Research | Spotted Executioner 35041 | -2/Research | Spotted Executioner 35054 | -2/Research | Destroyed Executioner 35071 | -2/Research | Found Exp. Targeting Computer 35114 | -2/Research | Discovered new exit (range 15) 35180 | -2/Research | Entered Access 35180 | -1/Access | Evolved 2 slots: Utility x2 35559 | -1/Access | Warped through subspace 35866 | -1/Access | System corruption reached 10% 36636 | -1/Access | Core integrity fell below 50% 36734 | -1/Access | Remotely autohacked Sealed Barrier 36738 | -1/Access | Discovered new exit (range 6) 36748 | *** | Destroyed 0B10! Last Messages --------------- 36679_ U-05 Engineer builds a Wall. 36679_ U-05 Engineer lays Concrete. 36681_ U-05 Engineer builds a Door. 36681_ U-05 Engineer lays Concrete. 36682_ System corrupted: IFF burst signal emitted. 36682_ U-05 Engineer lays Concrete. 36691_ Acquired 01-MTF's Autohacker. 36699_ U-05 Engineer builds a Wall. 36704_ System corrupted: Matter fused (-8). 36704_ Acquired 23 matter. 36705_ U-05 Engineer builds a Wall. 36720_ System corrupted: FCS attempts to trigger Hvy. Proton Cannon. 36720_ System corrupted: Hvy. Proton Cannon misfires. 36720_ Destroyed Wheel. 36733_ 01-MTF's Autohacker locks onto door control terminal, ETC: 1. 36734_ 01-MTF's Autohacker finishes hacking Sealed Barrier. 36738_ D=JQ #T HKWVCSG97IAMKVE/S3DXNTMXRPEM 36738_ The Access Shell folds into the floor. 36738_ EXIT=FOUND [Achievement: Payload Armed] Map ----- +----------------------------------------------------+ | ?????????????????????????????????????????????????? | | ?????????????????????????????????????????????????? | | ?????????????????????????????????????????????????? | | ?????????????????????????????????????????????????? | | ?????????????????????????????????????????????????? | | ?????????????????????????????????????????????????? | | ?????????????????????????????????????????????????? | | ?????????????????????????????????????????????????? | | ?????????????????????????????????????????????????? | | ?????????????????????????????????????????????????? | | ??????????? ?????????????????????????????????????? | | ??????????# ????????????????????????????????????? | | ??????????# ????????????????????????????????????? | | ??????????# ????????????????????????????????????? | | ??????????+ ????????????????????????????????????? | | ??????????# #???????????????????????????????????? | | ??????????# #???????????????????????????????????? | | ??????????# #???????????????????????????????????? | | ??????????# #?????###???????????????????????????? | | ??????????# %####### ##########??????????????????? | | ??????????# """T""" "??????????????????? | | ??????????# """ """ "??????????????????? | | ??????????# "??????????????????? | | ??????????# "??????????????????? | | ??????????# "" "??????????????????? | | ??????????# @" "??????????????????? | | ??????????# "??????????????????? | | /?????????# "??????????????????? | | ????????# "??????????????????? | | ???????# "??????????????????? | | ? ????### ####### ##########??????????????????? | | ?? #???# #=!#?????###???????????????????????????? | | ??? #####"#=!##??????????????????????????????????? | | ????# !*!#=*##??????????????????????????????????? | | ????# !=[=#%%##??????????????????????????????????? | | ????# %|| +!%##??????????????????????????????????? | | ????#== [[#==##??????????????????????????????????? | | ????# !* #*%##########??????????????????????????? | | ????# ! [!#=*#=* #??????????????????????????? | | ????# *|*=# !# #??????????????????????????? | | ????# # # #??????????????????????????? | | ????# # # #??????????????????????????? | | ????# # + #??????????????????????????? | | ????# # # #??????????????????????????? | | ????# # # [ #??????????????????????????? | | ????####### # [! #??????????????????????????? | | ??????????# # ! #??????????????????????????? | | ??????????# ##########??????????????????????????? | | ??????????# #?###???????????????????????????????? | | ??????????# #???????????????????????????????????? | +----------------------------------------------------+ Best States ------------- Heat Dissipation 106 Coolant Potential 100 Energy Generation 85 Energy Capacity 1480 Matter Stores 400 Matter Capacity 450 Sight Range 23 Robot Scan Range 22 Terrain Scan Range 18 Terrain Scan Density 10 Jamming Range 16 Additional Mass Support 9 Armor Coverage 2400 Resistance: KI 25 Resistance: TH 30 Resistance: EM 25 Power Shielding 66 Utility Shielding 66 Point Defense Rating 160 Weapon Cycling 20 Phase Shifting 10 Evasion (%) 65 Targeting Accuracy 20 Melee Accuracy 12 Target Analysis 12 Armor Integrity Analysis 66 Recoil Reduction 6 Energy Filtering 50 Particle Charging 25 Overload Amplification 50 Salvage Targeting 4 Offensive Hacking 28 Defensive Hacking 28 Item Schematics ----------------- None Robot Schematics ------------------ None Fabricated ------------ Lgt. Regenerative Plating | x1 | -6/Factory I-36 Angel | x1 | -6/Factory Powered Armor | x2 | -5/Factory Cmb. Gravmag System | x2 | -5/Factory Cmb. Gravmag System | x2 | -5/Factory Imp. Weapon Cycler | x2 | -5/Factory HERF Cannon | x1 | -4/Factory Alien Tech Used ----------------- Dimensional Node Initializer Integrated Reactor Transdimensional Reconstructor Core Expander Matter Drive Core Reset Matrix High-powered Transdimensional Reconstructor Phase Armor Achievements -------------- All-out Warlord Payload Armed Reappropriation Ultimate Loadout Challenges ------------ None Game ------ Seed UtilitySlugCannon Manual? 0 Play Time 07:59:58 Cumulative 176.5 hours Start 2020.10.05 @ 21:57:20 End 2020.10.06 @ 22:58:16 Sessions 3 Manual Loads 0 Difficulty Rogue Special Mode None Game No. 80 Rogue 80 Adventurer 0 Explorer 0 Win Type 3 Total 4 Types 3/0/0/1/0/0/0/0/0 Lore% 48 Gallery% 77 Achievement% 58 Wizard Run 0 Options --------- ASCII 0 Keyboard 0 Movement Numpad Keybinds 0 Fullscreen 1 Font 18/SmallcapsGlow Map View 76x50 Tactical HUD 1 Map Filters NONE Filters NONE Steam 1 RUN: dc4c497d-4e24-424e-8d68-3c7a2770a0ae